bitfinex-derivatives/quotes_SOLF0:USTF0_20260213
["timestamp","ask_amount","ask_price","bid_price","bid_amount"]
[1771012180842,3.74434917,84.642,84.604,2.92724128]
[1771012181039,10.6376,84.652,84.61,3.21749043]
[1771012181232,10.6376,84.652,84.611,2.92724128]
[1771012181439,3.74434917,84.669,84.621,2.92583491]
[1771012181847,3.21749043,84.66,84.61,3.21749043]
[1771012182044,3.74434917,84.659,84.61,6.14332534]
[1771012182246,3.74434917,84.659,84.611,2.92583491]
[1771012182950,10.637,84.657,84.614,2.92583491]
[1771012183745,10.637,84.657,84.617,10.6419]
[1771012184152,10.6379,84.65,84.614,2.92583491]
[1771012184349,10.6379,84.65,84.598,457.96350823]
[1771012184350,3.74434917,84.649,84.6,3.21749043]
[1771012184556,6.9618396,84.64,84.598,460.96483554]
[1771012184851,3.74434917,84.636,84.598,457.96350823]
[1771012185448,3.74434917,84.636,84.599,3.00729857]
[1771012185652,3.74434917,84.649,84.601,3.00729857]
[1771012186852,3.74434917,84.649,84.6,3.21749043]
[1771012186853,3.74434917,84.649,84.609,13.65029857]
[1771012187853,3.74434917,84.649,84.61,2.98074332]
[1771012190848,3.74434917,84.649,84.611,10.6427]
[1771012193856,10.6381,84.648,84.611,10.6427]
[1771012194056,10.6381,84.648,84.61,2.98074332]
[1771012194355,3.74434917,84.647,84.61,2.98074332]
[1771012194550,3.74434917,84.645,84.608,141.08]
[1771012195353,6.9618396,84.64,84.6,144.7]
[1771012195558,3.74434917,84.639,84.6,144.7]
[1771012196259,3.74434917,84.639,84.598,468.60780823]
[1771012198060,3.74434917,84.639,84.598,457.96350823]
[1771012198261,3.74434917,84.639,84.599,2.97754045]
[1771012198758,3.21749043,84.64,84.598,457.96350823]
[1771012198759,3.21749043,84.64,84.603,2.97754045]
[1771012198964,3.74434917,84.651,84.603,2.97754045]
[1771012199761,3.74434917,84.651,84.611,2.87981065]
[1771012200352,3.74434917,84.667,84.62,2.87981065]
[1771012200559,3.74434917,84.667,84.622,2.87981065]
[1771012201755,10.6359,84.665,84.623,10.6411]
[1771012202460,3.76661337,84.664,84.629,13.72478182]
[1771012202964,10.6349,84.673,84.632,3.08438182]
[1771012203169,3.76661337,84.677,84.632,3.08438182]
[1771012203366,3.76661337,84.69,84.641,3.08438182]
[1771012203859,3.76661337,84.69,84.651,3.08234496]
[1771012205459,10.6319,84.697,84.651,3.08234496]
[1771012205664,3.76661337,84.709,84.661,3.05441084]
[1771012207160,3.21749043,84.72,84.671,3.05441084]
[1771012207358,3.76661337,84.722,84.671,3.05441084]
[1771012207557,3.76661337,84.722,84.68,3.21749043]
[1771012207958,3.76661337,84.722,84.681,3.06027275]
[1771012208161,3.21749043,84.73,84.633,21.2799]
[1771012208162,3.76661337,84.729,84.677,3.06027275]
[1771012208766,3.76661337,84.729,84.681,3.06027275]
[1771012209967,109.75749043,84.74,84.691,3.01629193]
[1771012210166,106.54,84.74,84.691,3.01629193]
[1771012210768,10.6268,84.738,84.691,3.01629193]
[1771012211564,14.39341337,84.738,84.691,3.01629193]
[1771012211863,3.21749043,84.74,84.691,3.01629193]
[1771012211864,10.6271,84.735,84.691,3.01629193]
[1771012212270,3.76661337,84.729,84.68,3.21749043]
[1771012212569,3.76661337,84.729,84.681,2.99585184]
[1771012213166,3.76661337,84.729,84.682,2.99585184]
[1771012213467,3.76661337,84.749,84.691,2.99585184]
[1771012214672,3.76661337,84.739,84.691,2.99585184]
[1771012214865,3.76661337,84.739,84.695,10.6321]
[1771012215262,10.6261,84.744,84.665,94.28]
[1771012215263,3.76661337,84.744,84.701,3.00527815]
[1771012216372,3.76661337,84.759,84.71,10.6303]
[1771012218274,3.76661337,84.749,84.71,10.6303]
[1771012219372,3.76661337,84.729,84.684,2.95062518]
[1771012219971,3.76661337,84.729,84.69,13.57319675]
[1771012220176,10.6268,84.738,84.691,2.94049675]
[1771012221572,14.39411337,84.733,84.691,2.94049675]
[1771012222278,3.76661337,84.732,84.691,2.94049675]
[1771012222675,10.6287,84.723,84.691,2.94049675]
[1771012222878,10.6287,84.723,84.69,3.21749043]
[1771012222879,10.6287,84.723,84.681,2.85585489]
[1771012223680,3.76661337,84.729,84.681,2.85585489]
[1771012224881,3.76661337,84.729,84.651,115.5152]
[1771012224882,3.76661337,84.719,84.67,3.21749043]
[1771012225188,3.76661337,84.709,84.667,2.88170508]
[1771012225379,3.76661337,84.709,84.671,2.95350915]
[1771012225580,10.6294,84.717,84.671,2.95350915]
[1771012225887,14.39601337,84.717,84.671,2.95350915]
[1771012226071,10.6299,84.713,84.674,10.6347]
[1771012226678,14.39651337,84.713,84.671,2.95350915]
[1771012226985,3.76661337,84.712,84.671,2.95350915]
[1771012227578,3.76661337,84.709,84.667,10.6356]
[1771012227777,3.76661337,84.709,84.631,21.2803]
[1771012227778,3.76661337,84.679,84.625,2.94808834]
[1771012227979,3.21749043,84.67,84.625,2.94808834]
[1771012228180,6.9841038,84.67,84.625,2.94808834]
[1771012228783,3.76661337,84.669,84.625,2.94808834]
[1771012228984,3.21749043,84.66,84.625,2.94808834]
[1771012229182,3.21749043,84.66,84.616,2.94808834]
[1771012229384,3.76661337,84.668,84.621,2.94808834]
[1771012229585,3.21749043,84.68,84.639,10.6391]
[1771012229776,3.21749043,84.68,84.621,2.94808834]
[1771012229777,3.21749043,84.67,84.621,2.94808834]
[1771012230778,3.21749043,84.67,84.63,10.6403]
[1771012236091,3.21749043,84.67,84.633,2.94710726]
[1771012236290,3.21749043,84.68,84.633,2.94710726]
[1771012236485,3.76661337,84.682,84.633,2.94710726]
[1771012236987,3.21591843,84.68,84.637,2.94710726]
[1771012237693,3.21591843,84.68,84.638,10.6392]
[1771012238394,10.6342,84.679,84.639,2.92990797]
[1771012238789,3.21591843,84.68,84.639,2.92990797]
[1771012239093,3.76661337,84.682,84.641,2.92990797]
[1771012240588,3.87917215,84.697,84.65,3.21591843]
[1771012240891,3.87917215,84.723,84.68,3.21591843]
[1771012241395,3.87917215,84.738,84.69,3.21591843]
[1771012241794,3.87917215,84.738,84.7,3.21591843]
[1771012242787,3.87917215,84.754,84.713,10.6298]
[1771012243095,3.87917215,84.739,84.69,2.92143806]
[1771012243288,3.87917215,84.737,84.691,10.6326]
[1771012243595,3.87917215,84.73,84.691,10.6326]
[1771012243995,3.87917215,84.73,84.698,10.6317]
[1771012244190,3.87917215,84.745,84.691,2.88896583]
[1771012245096,3.21591843,84.74,84.705,10.6309]
[1771012245399,10.6254,84.75,84.68,3.21591843]
[1771012245400,3.87917215,84.729,84.68,3.21591843]
[1771012245597,3.21591843,84.74,84.704,10.6309]
[1771012245892,7.09509058,84.74,84.704,10.6309]
[1771012249492,7.09509058,84.74,84.695,10.6321]
[1771012250098,3.87917215,84.739,84.694,2.95477829]
[1771012250298,3.21591843,84.73,84.694,2.95477829]
[1771012250502,3.87917215,84.749,84.694,2.95477829]
[1771012250704,3.87917215,84.749,84.7,3.21591843]
[1771012250903,3.87917215,84.749,84.698,2.99813201]
[1771012250904,3.87917215,84.739,84.698,2.99813201]
[1771012251104,3.21591843,84.73,84.698,2.99813201]
[1771012251301,3.87917215,84.739,84.698,2.99813201]
[1771012251510,3.87917215,84.739,84.69,3.21591843]
[1771012251802,3.87917215,84.739,84.685,3.04137006]
[1771012252801,3.87917215,84.739,84.686,10.6332]
[1771012253304,3.87917215,84.739,84.686,13.67457006]
[1771012253507,3.87917215,84.737,84.686,13.67457006]
[1771012254201,3.87917215,84.735,84.693,10.6324]
[1771012257607,3.87917215,84.735,84.699,10.6316]
[1771012259908,3.21591843,84.74,84.702,3.01576729]
[1771012260518,10.6262,84.743,84.702,3.01576729]
[1771012260718,10.6262,84.743,84.705,3.016315]
[1771012261217,3.87917215,84.748,84.705,3.016315]
[1771012261218,10.6269,84.737,84.705,3.016315]
[1771012263312,3.71041445,84.756,84.708,2.93244927]
[1771012264020,3.71041445,84.748,84.708,2.93244927]
[1771012265915,10.6263,84.742,84.697,10.6318]
[1771012266221,3.21591843,84.74,84.698,2.97927937]
[1771012266420,14.33671445,84.742,84.698,2.97927937]
[1771012266621,3.71041445,84.742,84.706,2.97927937]
[1771012267017,3.71041445,84.759,84.706,2.97927937]
[1771012267422,3.21591843,84.75,84.706,2.97927937]
[1771012267823,3.21591843,84.75,84.709,10.6303]
[1771012269724,3.71041445,84.754,84.71,2.97827113]
[1771012270118,10.6251,84.752,84.71,2.97827113]
[1771012270314,3.71041445,84.751,84.71,2.97827113]
[1771012270827,3.71041445,84.749,84.71,2.97827113]
[1771012271421,3.71041445,84.746,84.71,2.97827113]
[1771012272927,3.71041445,84.746,84.711,10.6301]
[1771012273727,3.71041445,84.746,84.711,13.63328748]
[1771012273927,3.71041445,84.759,84.712,3.00318748]
[1771012274719,10.6252,84.751,84.712,3.00318748]
[1771012275015,14.33561445,84.751,84.712,3.00318748]
[1771012275517,3.71041445,84.75,84.712,3.00318748]
[1771012275715,6.92633288,84.75,84.712,3.00318748]
[1771012276528,3.71041445,84.747,84.712,3.00318748]
[1771012276715,3.21591843,84.73,84.691,3.00158339]
[1771012277320,3.21591843,84.73,84.698,10.6318]
[1771012277526,10.6271,84.736,84.698,10.6318]
[1771012277927,3.71041445,84.739,84.701,10.6314]
[1771012278323,3.71041445,84.739,84.702,3.00723125]
[1771012278624,3.21591843,84.74,84.702,3.00723125]
[1771012278815,3.71041445,84.749,84.702,3.00723125]
[1771012279730,3.71041445,84.749,84.71,10.6302]
[1771012279935,3.71041445,84.749,84.711,2.99978741]
[1771012281127,3.71041445,84.749,84.713,10.6299]
[1771012281627,10.6257,84.747,84.711,2.99978741]
[1771012281831,10.6257,84.747,84.704,10.6309]
[1771012281832,3.21591843,84.74,84.704,10.6309]
[1771012282031,3.21591843,84.74,84.704,13.65176279]
[1771012282629,3.71041445,84.746,84.704,13.65176279]
[1771012283435,3.71041445,84.744,84.704,13.65176279]
[1771012283734,3.21591843,84.74,84.71,10.6302]
[1771012283931,3.71041445,84.744,84.71,10.6302]
[1771012287428,3.71041445,84.744,84.712,10.63]
[1771012287630,3.21591843,84.75,84.713,3.01934332]
[1771012288737,3.21591843,84.75,84.716,10.6295]
[1771012288939,3.21591843,84.75,84.675,21.2693]
[1771012288940,8.4234599,84.763,84.721,3.01934332]
[1771012289236,6.92633288,84.77,84.721,3.01934332]
[1771012289629,3.21591843,84.76,84.727,10.628]
[1771012290236,3.21591843,84.76,84.721,3.01934332]
[1771012290929,8.4234599,84.782,84.694,21.2645]
[1771012290930,3.21591843,84.77,84.736,13.60305704]
[1771012293240,10.623,84.768,84.736,2.97605704]
[1771012296642,3.21591843,84.77,84.736,13.60305704]
[1771012297128,3.69012936,84.78,84.739,2.96089991]
[1771012297328,236.1,84.868,84.739,2.96089991]
[1771012297329,4.07074715,84.789,84.739,2.96089991]
[1771012297532,4.07074715,84.789,84.711,21.2603]
[1771012297533,4.07074715,84.789,84.741,2.96493382]
[1771012297733,4.07074715,84.789,84.751,10.625]
[1771012298030,4.07074715,84.789,84.711,21.2603]
[1771012298031,4.07074715,84.779,84.736,2.96493382]
[1771012298237,4.07074715,84.769,84.721,2.96493382]
[1771012298437,3.21591843,84.76,84.731,10.6276]
[1771012298632,4.07074715,84.769,84.696,2.96493382]
[1771012298828,4.07074715,84.769,84.721,2.96493382]
[1771012299441,4.07074715,84.769,84.739,10.6266]
[1771012300725,3.20912843,84.78,84.739,10.6266]
[1771012301137,4.07074715,84.769,84.739,10.6266]
[1771012301638,7.27987558,84.78,84.743,2.98526274]
[1771012301833,4.07074715,84.797,84.743,2.98526274]
[1771012302036,4.07074715,84.79,84.743,2.98526274]
[1771012302229,4.07074715,84.789,84.743,2.98526274]
[1771012302734,4.07074715,84.789,84.751,10.6251]
[1771012303335,7.27987558,84.77,84.73,2.98526274]
[1771012303539,4.07074715,84.769,84.73,2.98526274]
[1771012304441,4.07074715,84.769,84.738,10.6267]
[1771012304740,4.07074715,84.769,84.73,2.98526274]
[1771012305644,4.07074715,84.769,84.731,10.6276]
[1771012305942,4.07074715,84.769,84.73,2.98526274]
[1771012306534,10.6231,84.768,84.73,2.98526274]
[1771012306843,3.20912843,84.76,84.725,2.91685]
[1771012307141,3.20912843,84.76,84.728,10.6279]
[1771012307743,3.20912843,84.75,84.712,2.9565099]
[1771012307935,4.07074715,84.758,84.712,2.9565099]
[1771012307936,3.20912843,84.74,84.712,2.9565099]
[1771012308642,3.20912843,84.74,84.706,10.6308]
[1771012309540,14.69644715,84.747,84.706,13.58615654]
[1771012310640,14.69644715,84.747,84.712,10.63]
[1771012311539,10.6248,84.754,84.718,13.56323717]
[1771012311739,10.6248,84.754,84.719,2.93403717]
[1771012313541,4.07074715,84.759,84.721,10.6288]
[1771012314838,4.07074715,84.757,84.721,10.6288]
[1771012318147,3.20912843,84.76,84.719,2.93403717]
[1771012318148,14.69534715,84.756,84.719,2.93403717]
[1771012318552,3.20912843,84.75,84.719,2.93403717]
[1771012318850,4.07074715,84.739,84.71,10.6302]
[1771012319648,4.07074715,84.739,84.703,10.6311]
[1771012320150,4.07074715,84.739,84.711,10.6301]
[1771012321751,17.70374153,84.75,84.711,10.6301]
[1771012322153,3.8693131,84.747,84.696,2.95798322]
[1771012322450,8.41782654,84.777,84.696,2.95798322]
[1771012322451,3.20912843,84.73,84.696,2.95798322]
[1771012322753,3.8693131,84.739,84.696,2.95798322]
[1771012323753,3.8693131,84.739,84.697,10.6318]
[1771012323955,3.8693131,84.739,84.698,3.01268464]
[1771012324156,3.20912843,84.75,84.698,3.01268464]
[1771012324654,3.8693131,84.763,84.721,3.01268464]
[1771012324858,3.8693131,84.779,84.731,3.01268464]
[1771012325756,14.4910131,84.779,84.741,2.85359812]
[1771012326545,8.38142021,84.795,84.75,3.20912843]
[1771012326752,286.78424973,84.796,84.751,2.85359812]
[1771012327757,3.8693131,84.795,84.74,3.20912843]
[1771012328051,282.91493663,84.796,84.74,3.20912843]
[1771012328052,10.6208,84.786,84.741,10.6263]
[1771012328249,3.8693131,84.785,84.74,3.20912843]
[1771012328556,3.8693131,84.785,84.741,2.82902191]
[1771012329358,3.8693131,84.769,84.72,2.82902191]
[1771012330057,7.07844153,84.76,84.72,2.82902191]
[1771012330758,7.07844153,84.76,84.721,10.6288]
[1771012331062,7.07844153,84.76,84.72,2.82902191]
[1771012331358,3.8693131,84.76,84.72,2.82902191]
[1771012331558,3.8693131,84.76,84.727,10.628]
[1771012334057,3.8693131,84.759,84.707,154.20014976]
[1771012334253,3.8693131,84.749,84.707,2.86014976]
[1771012335163,3.8693131,84.739,84.697,10.6318]
[1771012339867,10.6268,84.738,84.697,10.6318]
[1771012340064,3.8693131,84.737,84.697,10.6318]
[1771012342471,14.4966131,84.734,84.694,2.86014976]
[1771012342672,3.8693131,84.733,84.694,2.86014976]
[1771012343477,3.8693131,84.733,84.695,10.6322]
[1771012344777,3.8693131,84.733,84.694,2.86014976]
[1771012344977,3.8693131,84.729,84.686,10.6332]
[1771012345177,3.8693131,84.719,84.681,2.8944778]
[1771012347871,14.4987131,84.718,84.681,2.8944778]
[1771012349177,3.20912843,84.71,84.669,13.52466777]
[1771012349478,3.20912843,84.71,84.62,35.48]
[1771012349479,3.8693131,84.709,84.661,2.88926777]
[1771012349787,3.20912843,84.7,84.661,2.88926777]
[1771012350675,3.20912843,84.72,84.671,2.82297381]
[1771012350882,3.96457008,84.719,84.671,2.82297381]
[1771012351082,3.96457008,84.709,84.673,10.6348]
[1771012353086,3.96457008,84.709,84.673,13.47638256]
[1771012354386,3.96457008,84.719,84.68,10.634]
[1771012354993,3.20912843,84.74,84.693,2.82037167]
[1771012355381,7.17369851,84.74,84.693,2.82037167]
[1771012355593,3.96457008,84.739,84.693,2.82037167]
[1771012356881,3.96457008,84.737,84.693,2.82037167]
[1771012357891,3.20912843,84.73,84.693,2.82037167]
[1771012359095,3.21225791,84.74,84.703,2.74883043]
[1771012360995,3.21225791,84.74,84.704,10.631]
[1771012361393,3.96437873,84.745,84.704,10.631]
[1771012365998,109.52,84.762,84.657,94.24]
[1771012365999,3.96437873,84.757,84.711,2.7868235]
[1771012366994,8.35045335,84.781,84.678,94.22]
[1771012366995,3.96437873,84.749,84.701,2.7868235]
[1771012367899,3.96437873,84.739,84.689,2.78671429]
[1771012368206,3.96437873,84.729,84.689,2.78671429]
[1771012368399,3.96437873,84.729,84.691,10.6326]
[1771012373312,3.96437873,84.729,84.689,2.78671429]
[1771012374799,3.96437873,84.729,84.691,2.7646002]
[1771012375712,3.96437873,84.729,84.695,10.6321]
[1771012375908,3.96437873,84.729,84.691,2.7646002]
[1771012377613,3.96437873,84.729,84.698,10.6317]
[1771012380211,3.21225791,84.73,84.692,10.6325]
[1771012380414,3.96437873,84.729,84.692,10.6325]
[1771012381009,3.76172159,84.709,84.671,10.6351]
[1771012381608,3.76172159,84.709,84.66,3.21225791]
[1771012381609,3.21225791,84.72,84.683,10.6336]
[1771012381812,3.21225791,84.72,84.672,2.74397844]
[1771012381813,3.21225791,84.73,84.672,2.74397844]
[1771012382418,13.84005791,84.73,84.686,2.74397844]
[1771012382613,3.21225791,84.73,84.686,2.74397844]
[1771012382914,3.76172159,84.733,84.686,2.74397844]
[1771012383706,3.76172159,84.733,84.695,10.6321]
[1771012384307,14.38862159,84.738,84.699,2.73284946]
[1771012384510,14.38872159,84.736,84.699,2.73284946]
[1771012384714,3.76172159,84.735,84.699,2.73284946]
[1771012385715,10.6273,84.734,84.699,2.73284946]
[1771012387402,3.76172159,84.735,84.703,10.6311]
[1771012387601,108.96,84.755,84.671,21.2703]
[1771012387602,3.76172159,84.749,84.704,2.75929409]
[1771012388813,3.76172159,84.749,84.712,10.63]
[1771012389809,3.76172159,84.749,84.671,21.2703]
[1771012389810,8.35353796,84.773,84.731,2.72436861]
[1771012390009,3.76172159,84.781,84.741,2.72436861]
[1771012390211,11.56579587,84.8,84.751,2.72436861]
[1771012390414,3.76172159,84.823,84.771,2.72436861]
[1771012391617,3.21225791,84.82,84.771,2.72436861]
[1771012391808,3.21225791,84.82,84.776,10.622]
[1771012393110,3.76172159,84.809,84.771,2.72436861]
[1771012393312,3.21225791,84.79,84.741,2.58645778]
[1771012393818,3.76172159,84.779,84.721,2.57891708]
[1771012394719,3.76172159,84.779,84.732,10.6274]
[1771012395214,3.76172159,84.769,84.721,13.20771708]
[1771012395414,3.21225791,84.76,84.721,13.20771708]
[1771012396415,3.76172159,84.769,84.727,10.6281]
[1771012398625,3.21225791,84.76,84.727,2.68143194]
[1771012400425,3.76172159,84.769,84.729,2.6801382]
[1771012401027,3.76172159,84.785,84.729,2.6801382]
[1771012401317,3.21225791,84.78,84.729,2.6801382]
[1771012401918,6.9739795,84.78,84.729,2.6801382]
[1771012402811,6.9739795,84.78,84.735,10.6271]
[1771012403016,3.76172159,84.779,84.735,10.6271]
[1771012403225,3.21225791,84.77,84.735,10.6271]
[1771012405420,3.21225791,84.76,84.727,10.628]
[1771012406623,94.18,84.793,84.72,10.629]
[1771012406624,3.21225791,84.75,84.72,10.629]
[1771012406823,94.18,84.793,84.702,2.69560816]
[1771012406824,3.21225791,84.74,84.702,2.69560816]
[1771012407824,3.21225791,84.74,84.702,13.32680816]
[1771012408025,3.21225791,84.73,84.702,2.69560816]
[1771012408530,3.21225791,84.74,84.702,2.69560816]
[1771012409332,3.76172159,84.749,84.705,2.78144517]
[1771012409522,3.21225791,84.74,84.705,2.78144517]
[1771012410324,3.21225791,84.74,84.706,10.6307]
[1771012410925,3.21225791,84.75,84.707,2.79162576]
[1771012411131,3.84050903,84.767,84.667,14.62585768]
[1771012411132,3.21225791,84.76,84.721,10.6289]
[1771012411331,3.21225791,84.76,84.721,13.42052576]
[1771012415720,3.21225791,84.76,84.726,10.6282]
[1771012416732,3.21225791,84.77,84.733,2.78033888]
[1771012417527,4.04073591,84.769,84.733,2.78033888]
[1771012417829,3.21225791,84.77,84.733,2.78033888]
[1771012418833,3.21225791,84.77,84.739,10.6266]
[1771012421032,3.20926153,84.78,84.745,10.6258]
[1771012421238,4.04073591,84.789,84.745,2.78223548]
[1771012421437,3.20926153,84.78,84.745,2.78223548]
[1771012422841,3.20926153,84.78,84.751,10.6251]
[1771012423541,7.24999744,84.77,84.743,10.6261]
[1771012425444,109.4,84.813,84.732,10.6275]
[1771012425445,3.20926153,84.76,84.732,10.6275]
[1771012425644,4.04073591,84.769,84.732,10.6275]
[1771012426047,3.20926153,84.78,84.738,10.6267]
[1771012426344,3.20926153,84.78,84.729,2.78837567]
[1771012426644,3.20926153,84.77,84.729,2.78837567]
[1771012427238,3.20926153,84.78,84.729,2.78837567]
[1771012427842,7.24999744,84.78,84.744,10.6259]
[1771012428543,10.6218,84.778,84.738,10.6268]
[1771012428738,109.26,84.793,84.729,2.78837567]
[1771012428739,3.20926153,84.76,84.729,2.78837567]
[1771012428939,7.24999744,84.76,84.711,2.80244059]
[1771012429249,7.24999744,84.76,84.723,10.6286]
[1771012430353,7.24999744,84.76,84.727,10.6281]
[1771012430647,3.20926153,84.77,84.724,2.80244059]
[1771012431852,3.20926153,84.77,84.736,10.627]
[1771012432548,3.20926153,84.77,84.729,10.6278]
[1771012434151,3.20926153,84.77,84.729,13.45485976]
[1771012434452,3.20926153,84.77,84.733,10.6274]
[1771012434759,3.20926153,84.78,84.734,2.81822196]
[1771012435251,3.20926153,84.77,84.734,2.81822196]
[1771012437756,3.20926153,84.77,84.745,10.6259]
[1771012439660,3.20926153,84.77,84.738,10.6267]
[1771012439855,4.04073591,84.769,84.721,2.80746147]
[1771012440261,4.04073591,84.759,84.711,2.80746147]
[1771012440463,3.20926153,84.74,84.711,2.80746147]
[1771012441852,3.20926153,84.77,84.711,2.80746147]
[1771012442055,3.20926153,84.77,84.71,3.20926153]
[1771012442056,3.20926153,84.77,84.721,2.81590291]
[1771012442463,3.20926153,84.77,84.738,10.6266]
[1771012445262,3.76603137,84.771,84.745,10.6259]
[1771012445564,3.20926153,84.78,84.745,10.6259]
[1771012446868,3.76603137,84.779,84.743,2.8329189]
[1771012447766,10.6219,84.778,84.743,2.8329189]
[1771012448266,3.76603137,84.779,84.746,10.6257]
[1771012452571,3.20926153,84.77,84.743,2.8329189]
[1771012453159,3.76603137,84.779,84.744,10.6259]
[1771012454370,3.76603137,84.779,84.73,3.20926153]
[1771012454371,3.76603137,84.779,84.747,10.6255]
[1771012454570,3.76603137,84.779,84.745,2.81760552]
[1771012455269,3.20926153,84.77,84.745,2.81760552]
[1771012455768,3.20926153,84.77,84.74,10.6264]
[1771012456171,3.76603137,84.777,84.74,10.6264]
[1771012457869,14.38813137,84.776,84.734,2.85778949]
[1771012459673,3.76603137,84.776,84.742,10.6263]
[1771012460177,3.76603137,84.769,84.716,2.85849808]
[1771012460377,3.76603137,84.769,84.717,2.85849808]
[1771012460870,3.76603137,84.769,84.716,14.62585768]
[1771012460871,3.76603137,84.769,84.738,10.6267]
[1771012468280,3.76603137,84.768,84.731,10.6276]
[1771012468873,3.76603137,84.768,84.734,10.6272]
[1771012469574,3.76603137,84.768,84.735,2.80561975]
[1771012470682,3.76603137,84.768,84.737,13.49134843]
[1771012470885,10.6226,84.772,84.738,2.86454843]
[1771012471189,3.74311614,84.778,84.739,10.6266]
[1771012471486,3.74311614,84.778,84.738,2.86454843]
[1771012472879,10.6227,84.771,84.738,2.86454843]
[1771012474382,14.36491614,84.778,84.738,13.49134843]
[1771012474579,3.74311614,84.777,84.739,2.84076438]
[1771012474784,6.95237767,84.79,84.739,2.84076438]
[1771012474985,6.95237767,84.79,84.741,2.85400609]
[1771012475185,10.621,84.785,84.748,2.85400609]
[1771012476289,14.36411614,84.785,84.748,2.85400609]
[1771012476594,3.20926153,84.78,84.748,2.85400609]
[1771012477592,14.36411614,84.785,84.75,2.84340126]
[1771012478097,3.20926153,84.78,84.75,2.84340126]
[1771012480194,10.6217,84.779,84.75,2.84340126]
[1771012482189,3.20926153,84.78,84.75,2.84340126]
[1771012482596,7.02750696,84.78,84.749,10.6253]
[1771012482893,7.02645205,84.78,84.749,10.6253]
[1771012483791,3.81824543,84.769,84.729,2.80438045]
[1771012484395,10.6218,84.778,84.741,2.80438045]
[1771012484591,3.20820662,84.78,84.741,2.80438045]
[1771012484891,3.81824543,84.789,84.741,2.80438045]
[1771012485598,3.81824543,84.785,84.748,13.41413727]
[1771012486087,10.6211,84.784,84.748,13.41413727]
[1771012487099,14.43954543,84.782,84.748,2.78873727]
[1771012487291,3.20820662,84.78,84.748,2.78873727]
[1771012487487,3.81824543,84.779,84.748,2.78873727]
[1771012490703,3.81824543,84.779,84.749,10.6253]
[1771012491197,3.81824543,84.801,84.769,10.6228]
[1771012491392,3.81824543,84.814,84.77,5.9618161]
[1771012491594,110.48,84.817,84.771,2.75360948]
[1771012491794,134.03046466,84.822,84.771,2.75360948]
[1771012491993,3.81824543,84.821,84.771,2.75360948]
[1771012492397,7.02645205,84.82,84.771,2.75360948]
[1771012492598,3.81824543,84.819,84.771,2.75360948]
[1771012492904,3.81824543,84.816,84.777,10.6219]
[1771012493104,7.02645205,84.81,84.777,10.6219]
[1771012493300,3.20820662,84.81,84.777,10.6219]
[1771012493506,3.81824543,84.809,84.77,10.6227]
[1771012494905,3.81824543,84.806,84.77,10.6227]
[1771012498203,3.81824543,84.799,84.757,2.72519726]
[1771012498406,3.20820662,84.77,84.73,2.79928298]
[1771012499108,3.81824543,84.779,84.73,2.79928298]
[1771012499597,14.43994543,84.779,84.743,10.6261]
[1771012499794,3.81824543,84.779,84.731,2.80004411]
[1771012500401,3.81824543,84.779,84.749,10.6253]
[1771012500604,3.81824543,84.805,84.75,2.86202952]
[1771012500800,3.20820662,84.83,84.78,3.20820662]
[1771012501107,3.69638543,84.819,84.782,10.6212]
[1771012501308,3.69638543,84.819,84.77,3.20820662]
[1771012502101,3.20820662,84.83,84.78,3.20820662]
[1771012502310,3.20820662,84.83,84.749,2.86202952]
[1771012502311,3.69638543,84.862,84.811,2.86048679]
[1771012502508,3.69638543,84.862,84.81,3.20820662]
[1771012502509,3.69638543,84.869,84.821,2.64870139]
[1771012502705,3.69638543,84.849,84.797,2.64870139]
[1771012502913,3.69638543,84.829,84.784,2.64870139]
[1771012503104,21.2152,84.892,84.754,142.46]
[1771012503105,3.69638543,84.862,84.811,2.64870139]
[1771012503407,3.69638543,84.876,84.831,2.64870139]
[1771012503599,3.20820662,84.87,84.831,2.64870139]
[1771012504105,3.69638543,84.876,84.831,2.64870139]
[1771012504608,3.69638543,84.876,84.832,10.615]
[1771012505511,3.69638543,84.884,84.823,2.76753664]
[1771012505701,3.20820662,84.88,84.831,2.76753664]
[1771012505901,6.90459205,84.88,84.831,2.76753664]
[1771012506104,3.69638543,84.869,84.825,10.6158]
[1771012506307,3.69638543,84.869,84.817,2.76753664]
[1771012506504,94.14,84.898,84.804,2.76753664]
[1771012506505,3.69638543,84.859,84.804,2.76753664]
[1771012506714,3.69638543,84.859,84.815,10.617]
[1771012507604,3.69638543,84.859,84.815,13.42628669]
[1771012508612,3.20820662,84.88,84.831,2.80127663]
[1771012508812,3.20820662,84.87,84.831,2.80127663]
[1771012509415,6.90459205,84.87,84.811,2.80127663]
[1771012509612,6.90459205,84.87,84.822,10.6162]
[1771012510615,6.90459205,84.87,84.829,10.6153]
[1771012511619,3.69638543,84.87,84.83,2.81567811]
[1771012511821,3.69638543,84.87,84.83,6.02388473]